[Event "SC Kreuzberg IM 2018"]
[Site "Berlin"]
[Date "2018.08.05"]
[Round "6.5"]
[White "Berger, Steve"]
[Black "Barath, Madhan"]
[Result "1-0"]
[ECO "B23"]
[WhiteElo "2428"]
[BlackElo "2307"]
[Annotator "NA"]
[PlyCount "75"]
[EventDate "2018.08.06"]
[EventType "tourn"]
[EventCountry "GER"]
[SourceTitle "playchess.com"]
[Source "ChessBase"]
[SourceQuality "1"]
[TimeControl "40/5400+30:1800+30"]

1. e4 {[%emt 1:30:28]} c5 {[%emt 1:32:29]} 2. Nc3 {[%emt 1:32:29]} d6 3. f4 {[%emt 1:32:29]} g6 {[%emt 1:32:29]} 4. Nf3 Bg7 5. Bb5+ Bd7 6. Bc4 {[%emt 1:26:17]} Nc6 {[%emt 1:31:17]} 7. O-O {[%emt 1:31:41]} Na5 8. Be2 Nf6 9. d3 Nc6 10. Qe1 O-O 11. Be3 {[%emt 1:22:19]} Ng4 {[%emt 1:10:51]} 12. Bd2 {[%emt 1:22:36]} Nd4 {[%emt 0:52:11]} 13. Bd1 {[%emt 1:21:55]} f5 {[%emt 0:50:25]} 14. exf5 {[%emt 1:19:46]} gxf5 {[%emt 0:50:16]} 15. h3 {[%emt 1:18:39]} Nf6 {[%emt 0:50:07]} 16. Rb1 {[%emt 1:18:43]} Re8 {[%emt 0:35:43]} 17. b4 {[%emt 1:14:17]} b6 {[%emt 0:33:56]} 18. bxc5 {[%emt 1:13:49]} bxc5 {[%emt 0:34:07]} 19. Nxd4 {[%emt 1:12:42]} cxd4 {[%emt 0:34:29]} 20. Ne2 {[%emt 1:12:44]} Nd5 {[%emt 0:17:31]} 21. c3 {[%emt 1:09:37]} dxc3 {[%emt 0:17:18]} 22. Nxc3 {[%emt 1:09:41]} Nb6 {[%emt 0:16:55]} 23. Bb3+ {[%emt 1:06:49]} e6 {[%emt 0:17:11]} 24. Ne2 {[%emt 1:06:08]} Kh8 {[%emt 0:14:49]} 25. Bc3 {[%emt 1:03:42]} Qe7 {[%emt 0:10:38]} 26. Nd4 {[%emt 1:00:53]} Rac8 {[%emt 0:06:28]} 27. Ba1 {[%emt 0:57:00]} h6 {[%emt 0:04:07]} 28. Qa5 {[%emt 0:55:19]} Rc5 {[%emt 0:01:58]} 29. Qxa7 {[%emt 0:53:47]} Nd5 {[%emt 0:02:20]} 30. Rbe1 {[%emt 0:52:02]} Qf7 {[%emt 0:01:12]} 31. Ba4 {[%emt 0:33:36]} Rc7 32. Qa5 {[%emt 0:33:38]} Rc5 {[%emt 0:00:39]} 33. Qa6 {[%emt 0:33:27]} Bxa4 {[%emt 0:00:18]} 34. Qxa4 {[%emt 0:33:45]} Rcc8 {[%emt 0:00:18]} 35. Kh1 {[%emt 0:31:22]} Ra8 {[%emt 0:00:32]} 36. Qc6 {[%emt 0:30:14]} Rxa2 {[%emt 0:00:39]} 37. Nxf5 {[%emt 0:30:03]} Bxa1 {[%emt 0:00:17]} 38. Nxd6 {[%emt 0:30:14]} 1-0

[Event "SC Kreuzberg IM 2018"]
[Site "Berlin"]
[Date "2018.08.05"]
[Round "7.4"]
[White "Muse, Drazen"]
[Black "Glantz, Robert"]
[Result "1/2-1/2"]
[ECO "E61"]
[WhiteElo "2361"]
[BlackElo "2336"]
[Annotator "NA"]
[PlyCount "142"]
[EventDate "2018.08.06"]
[EventType "tourn"]
[EventCountry "GER"]
[SourceTitle "playchess.com"]
[Source "ChessBase"]
[SourceQuality "1"]
[TimeControl "40/5400+30:1800+30"]

1. Nf3 {[%emt 1:28:03]} Nf6 {[%emt 1:30:10]} 2. c4 {[%emt 1:28:28]} g6 {[%emt 1:28:57]} 3. Nc3 {[%emt 1:28:25]} Bg7 {[%emt 1:29:09]} 4. d4 {[%emt 1:26:22]} O-O {[%emt 1:28:21]} 5. Bg5 {[%emt 1:26:02]} d6 {[%emt 1:27:05]} 6. e3 {[%emt 1:26:13]} c5 {[%emt 1:25:06] LiveBook: 446 Games} 7. Be2 {[%emt 1:26:26]} cxd4 {[%emt 1:21:16]} 8. exd4 {[%emt 1:26:44]} Bf5 {[%emt 1:15:48] E61: King's Indian: Early deviations for White, including Smyslov System} 9. O-O {[%emt 1:24:57]} Ne4 {[%emt 1:13:15]} 10. Nxe4 {[%emt 1:25:09]} Bxe4 {[%emt 1:13:37]} 11. Qd2 {[%emt 1:25:35]} Nc6 {[%emt 1:10:35]} 12. d5 {[%emt 1:25:16]} Bxf3 {[%emt 1:08:16]} 13. Bxf3 {[%emt 1:22:50]} Ne5 {[%emt 1:03:48]} 14. Be2 {[%emt 1:21:30]} a5 {[%emt 0:58:08]} 15. Rac1 $146 {[%emt 1:19:33]} ({Predecessor:} 15. Rfe1 Re8 16. Rac1 Nd7 17. Bg4 Nc5 18. Re2 Bf6 19. Be3 Rb8 20. Bxc5 dxc5 21. a4 {½-½ (21) Abrashkin,B (2379)-Kruppa,Y (2544) Samara 2002}) 15... Nd7 {[%emt 0:55:48]} 16. Rfe1 {[%emt 1:18:57]} Nc5 {[%emt 0:49:06]} 17. Bf3 {[%emt 1:17:31]} Re8 {[%emt 0:48:23]} 18. b3 {[%emt 1:17:25]} Bf6 {[%emt 0:46:36]} 19. Be3 {[%emt 1:11:29]} Qd7 {[%emt 0:41:16]} 20. Be2 {[%emt 1:11:12]} Qf5 {[%emt 0:37:01]} 21. h3 {[%emt 1:10:31]} h5 {[%emt 0:31:36]} 22. g4 {[%emt 1:07:34]} hxg4 {[%emt 0:31:52]} 23. Bxg4 {[%emt 1:07:28]} Qd3 {[%emt 0:31:17]} 24. Red1 {[%emt 1:07:46]} Qxd2 {[%emt 0:25:52]} 25. Rxd2 {[%emt 1:08:06]} Kg7 {[%emt 0:23:55]} 26. Bf3 {[%emt 1:05:19]} Be5 {[%emt 0:22:27]} 27. Bg2 {[%emt 1:05:02]} Rab8 {[%emt 0:20:48]} 28. f4 {[%emt 1:04:07]} Bf6 {[%emt 0:21:10]} 29. Bf1 {[%emt 1:04:10]} Rh8 {[%emt 0:20:32]} 30. Rb1 {[%emt 1:03:01]} Rh5 {[%emt 0:13:38]} 31. a3 {[%emt 1:01:03]} Ra8 {[%emt 0:13:19]} 32. Kh2 {[%emt 0:58:46]} Rhh8 {[%emt 0:09:47]} 33. Rc2 {[%emt 0:55:04]} Rhc8 {[%emt 0:09:22]} 34. b4 {[%emt 0:54:25]} axb4 {[%emt 0:09:44]} 35. axb4 {[%emt 0:54:52]} Nd7 {[%emt 0:05:28]} 36. c5 {[%emt 0:52:31]} Ra3 {[%emt 0:04:58]} 37. Bc1 {[%emt 0:44:17]} Rc3 {[%emt 0:02:31]} 38. Rxc3 {[%emt 0:44:11]} Bxc3 {[%emt 0:02:59]} 39. Rb3 {[%emt 0:43:47]} Bd4 {[%emt 0:00:58]} 40. Bb5 {[%emt 0:43:44]} Nb8 {[%emt 0:00:17]} 41. c6 {[%emt 0:34:15]} bxc6 {[%emt 0:25:49]} 42. dxc6 {[%emt 1:04:41]} Nxc6 {[%emt 0:24:27]} 43. Bd2 {[%emt 1:01:52]} Bb6 {[%emt 0:19:26]} 44. Rc3 {[%emt 1:00:43]} Na7 {[%emt 0:19:45]} 45. Bd7 {[%emt 1:01:02]} Rxc3 {[%emt 0:18:48]} (45... Rd8 $17 46. Ba4 d5) 46. Bxc3+ {[%emt 1:01:28]} f6 {[%emt 0:18:28]} 47. b5 {[%emt 1:00:55]} Kf7 {[%emt 0:18:36]} 48. Bb4 {[%emt 1:01:11]} d5 {[%emt 0:14:03]} 49. Kg3 {[%emt 0:57:31]} e5 {[%emt 0:13:49]} 50. Bd6 {[%emt 0:52:26]} e4 {[%emt 0:13:24]} 51. f5 {[%emt 0:51:30]} gxf5 {[%emt 0:13:18]} 52. Kf4 {[%emt 0:51:27]} e3 {[%emt 0:12:20]} 53. Bb4 {[%emt 0:49:38] [#]} (53. Kf3 $11 {hält das Gleichgewicht.}) 53... d4 $1 {[%emt 0:11:42]} 54. Bxf5 {[%emt 0:42:37]} Nxb5 {[%emt 0:11:35]} 55. Bd3 {[%emt 0:43:04]} Na7 {[%emt 0:09:46]} 56. Bc4+ {[%emt 0:42:05]} Kg6 {[%emt 0:08:57]} 57. Bd3+ {[%emt 0:42:26]} Kg7 {[%emt 0:08:04]} 58. Bd6 {[%emt 0:42:27]} Nc8 {[%emt 0:05:54]} 59. Ba3 {[%emt 0:42:25]} Na7 {[%emt 0:05:10]} 60. Bd6 {[%emt 0:42:13]} Nc6 {[%emt 0:04:30]} 61. Ke4 {[%emt 0:42:09]} Kf7 {[%emt 0:03:52]} ({Better is} 61... Na5 $17 62. Kf5 Bd8) 62. Bb5 {[%emt 0:41:32]} (62. Kf5 $142) 62... Na7 {[%emt 0:03:26]} 63. Bc4+ {[%emt 0:41:10]} (63. Bd7 $11) 63... Kg6 {[%emt 0:03:46]} 64. Bd3 {[%emt 0:41:18]} Kg5 {[%emt 0:03:39]} 65. Be7 {[%emt 0:40:55]} Nc6 {[%emt 0:03:18] [#]} 66. h4+ $1 {[%emt 0:40:51]} Kxh4 {[%emt 0:03:17]} 67. Bxf6+ {[%emt 0:41:02]} Kg3 $11 {[%emt 0:02:55]} 68. Bb5 {[%emt 0:41:05]} Na7 {[%emt 0:01:01]} 69. Bd3 {[%emt 0:41:05]} Nc6 {[%emt 0:00:50]} 70. Bb5 {[%emt 0:41:30]} Na7 {[%emt 0:00:44]} 71. Bd3 {[%emt 0:41:47]} Nc6 {[%emt 0:00:20]} 1/2-1/2

[Event "SC Kreuzberg IM 2018"]
[Site "Berlin"]
[Date "2018.08.05"]
[Round "9.3"]
[White "Muse, Drazen"]
[Black "Berger, Steve"]
[Result "1/2-1/2"]
[ECO "D41"]
[WhiteElo "2361"]
[BlackElo "2428"]
[Annotator "NA"]
[PlyCount "23"]
[EventDate "2018.08.06"]
[EventType "tourn"]
[EventCountry "GER"]
[SourceTitle "playchess.com"]
[Source "ChessBase"]
[SourceQuality "1"]
[TimeControl "40/5400+30:1800+30"]

1. d4 {[%emt 1:30:29]} e6 {[%emt 1:30:23]} 2. Nf3 {[%emt 1:30:55]} Nf6 {[%emt 1:31:04]} 3. c4 {[%emt 1:31:04]} d5 {[%emt 1:31:04]} 4. Nc3 {[%emt 1:31:45]} c5 {[%emt 1:31:25]} 5. cxd5 {[%emt 1:32:11]} Nxd5 {[%emt 1:31:41]} 6. e4 {[%emt 1:32:37]} Nxc3 {[%emt 1:32:02]} 7. bxc3 {[%emt 1:33:04]} cxd4 {[%emt 1:32:19]} 8. cxd4 {[%emt 1:33:31]} Bb4+ {[%emt 1:32:36]} 9. Bd2 {[%emt 1:33:56]} Bxd2+ {[%emt 1:32:54]} 10. Qxd2 {[%emt 1:34:18]} Z0 11. Qd1 Z0 12. Ng1 1/2-1/2

[Event "SC Kreuzberg IM 2018"]
[Site "Berlin"]
[Date "2018.08.05"]
[Round "9.4"]
[White "Moritz, Aron"]
[Black "Meissner, Felix"]
[Result "0-1"]
[ECO "B56"]
[WhiteElo "2199"]
[BlackElo "2330"]
[Annotator "RC"]
[PlyCount "110"]
[EventDate "2018.08.06"]
[EventType "tourn"]
[EventCountry "GER"]
[SourceTitle "playchess.com"]
[Source "ChessBase"]
[SourceQuality "1"]
[TimeControl "40/5400+30:1800+30"]

1. e4 {[%emt 1:30:27]} c5 {[%emt 1:30:23]} 2. Nf3 {[%emt 1:31:09]} d6 {[%emt 1:31:09]} 3. d4 {[%emt 1:31:09]} cxd4 {[%emt 1:31:01]} 4. Nxd4 {[%emt 1:31:34]} Nf6 {[%emt 1:31:27]} 5. Nc3 {[%emt 1:31:59]} Nbd7 {[%emt 1:31:46]} 6. g3 {[%emt 1:27:05]} a6 {[%emt 1:23:34]} 7. a4 {[%emt 1:23:41]} b6 {[%emt 1:20:54]} 8. Bg2 {[%emt 1:23:06]} Bb7 {[%emt 1:19:31]} 9. O-O {[%emt 1:21:50]} e6 {[%emt 1:19:08]} 10. Re1 {[%emt 1:20:15]} Rb8 {[%emt 1:16:09]} 11. f4 {[%emt 1:11:26]} h5 {[%emt 1:08:51]} 12. h3 {[%emt 1:03:22]} Qc7 {[%emt 1:04:56]} 13. Nd5 {[%emt 0:49:25]} exd5 {[%emt 0:56:31]} 14. exd5+ {[%emt 0:49:42]} Be7 {[%emt 0:54:27]} 15. Nf5 {[%emt 0:48:18]} Ng8 {[%emt 0:54:40]} 16. Nxg7+ {[%emt 0:41:13]} Kf8 {[%emt 0:47:09]} 17. Nf5 {[%emt 0:35:56]} Bf6 {[%emt 0:46:23]} 18. Ra3 {[%emt 0:32:41]} Ne7 {[%emt 0:43:48]} 19. Nxe7 {[%emt 0:28:15]} Bxe7 {[%emt 0:44:01]} 20. Rc3 {[%emt 0:27:11]} Qd8 {[%emt 0:44:09]} 21. Rce3 {[%emt 0:22:52]} Bf6 {[%emt 0:44:09]} 22. g4 {[%emt 0:22:04]} Bh4 {[%emt 0:40:03]} 23. Rf1 {[%emt 0:18:53]} b5 {[%emt 0:35:36]} 24. axb5 {[%emt 0:16:41]} hxg4 {[%emt 0:35:07]} 25. hxg4 {[%emt 0:16:59]} Qb6 {[%emt 0:34:30]} 26. bxa6 {[%emt 0:16:07]} Bxa6 {[%emt 0:32:38]} 27. Rff3 {[%emt 0:16:32]} Re8 {[%emt 0:30:34]} 28. g5 {[%emt 0:15:11]} Kg7 {[%emt 0:26:29]} 29. b3 {[%emt 0:15:07]} f6 {[%emt 0:25:35]} 30. Bh3 {[%emt 0:14:09]} Nf8 {[%emt 0:19:35]} 31. Kg2 {[%emt 0:13:52]} Ng6 {[%emt 0:19:20]} 32. Be6 {[%emt 0:13:33]} Rh5 {[%emt 0:09:20]} 33. Re4 {[%emt 0:10:51]} Reh8 {[%emt 0:08:31]} 34. Bg4 {[%emt 0:08:25]} R5h7 {[%emt 0:08:41]} 35. Be3 {[%emt 0:07:26]} Qc7 {[%emt 0:07:57]} 36. Bd4 {[%emt 0:07:19]} Rf8 {[%emt 0:04:49]} 37. Re6 {[%emt 0:06:46]} Bc8 {[%emt 0:03:07]} 38. Rxf6 {[%emt 0:02:25]} Bxg4 {[%emt 0:02:36]} 39. Rxd6+ {[%emt 0:02:42]} Kf7 {[%emt 0:02:38]} 40. Rf6+ {[%emt 0:02:28]} Ke8 {[%emt 0:02:30]} 41. Re3+ {[%emt 0:00:41]} Re7 {[%emt 0:28:03]} 42. Rxf8+ {[%emt 0:17:45]} Kxf8 {[%emt 0:27:22]} 43. Qxg4 {[%emt 0:17:58]} Qxc2+ {[%emt 0:27:16]} 44. Kh3 {[%emt 0:17:41]} Rh7 {[%emt 0:25:14]} 45. Bg7+ {[%emt 0:12:25]} Rxg7 {[%emt 0:24:12]} 46. f5 {[%emt 0:11:33]} Qd2 {[%emt 0:18:41]} 47. Qf3 {[%emt 0:06:50]} Rf7 {[%emt 0:18:37]} 48. d6 {[%emt 0:01:18]} Bxg5 {[%emt 0:17:41]} 49. Qa8+ {[%emt 0:01:01]} Kg7 {[%emt 0:18:05]} 50. Qa1+ {[%emt 0:01:26]} Kh6 {[%emt 0:15:09]} 51. Re6 {[%emt 0:00:58]} Qd3+ {[%emt 0:15:10]} 52. Kg2 {[%emt 0:01:08]} Qd5+ {[%emt 0:14:23]} 53. Kg1 {[%emt 0:01:24]} Qxf5 {[%emt 0:13:52]} 54. Qe1 {[%emt 0:00:02]} Qg4+ {[%emt 0:13:23]} 55. Kh1 {[%emt 0:00:05]} Rh7 {[%emt 0:11:22]} 0-1